bitfinex-derivatives/quotes_SOLF0:USTF0_20240910
["timestamp","ask_amount","ask_price","bid_price","bid_amount"]
[1725991824768,11.28,136.54,136.49,11.28]
[1725991825178,11.28,136.54,136.52,3.6622]
[1725991826269,11.28,136.54,136.49,11.28]
[1725991826771,11.28,136.54,136.52,3.6621]
[1725991826973,11.28,136.54,136.48,19.5753]
[1725991827174,11.28,136.54,136.48,30.8553]
[1725991827374,1.3434,136.57,136.49,11.28]
[1725991827675,11.28,136.55,136.49,11.28]
[1725991828461,2.7069,136.58,136.49,11.28]
[1725991828665,1.3398,136.58,136.52,11.28]
[1725991828866,3.57604652,136.59,136.53,11.28]
[1725991829072,11.28,136.58,136.52,11.28]
[1725991829267,11.28,136.57,136.52,11.28]
[1725991829470,13.76588241,136.63,136.56,3.6609]
[1725991829673,11.28,136.58,136.53,11.28]
[1725991829868,11.28,136.58,136.48,19.5753]
[1725991829869,11.28,136.58,136.52,11.28]
[1725991830072,11.28,136.57,136.52,11.28]
[1725991830264,11.28,136.57,136.5,11.28]
[1725991830666,11.28,136.57,136.52,3.6622]
[1725991830880,11.28,136.56,136.52,3.6622]
[1725991831670,11.28,136.54,136.48,30.8553]
[1725991831981,11.28,136.53,136.48,30.8553]
[1725991832277,11.28,136.53,136.48,34.5184]
[1725991832679,11.28,136.54,136.48,30.8553]
[1725991832873,11.28,136.54,136.48,34.5186]
[1725991833072,11.28,136.54,136.48,30.8553]
[1725991833480,11.28,136.54,136.49,11.28]
[1725991833873,3.62274111,136.54,136.5,3.6625]
[1725991834075,11.28,136.55,136.5,3.6625]
[1725991834675,3.72827919,136.54,136.5,3.6625]
[1725991834874,11.28,136.52,136.48,16.91]
[1725991835077,11.28,136.51,136.48,16.91]
[1725991835471,14.9426,136.51,136.48,16.91]
[1725991836373,11.28,136.53,136.48,16.91]
[1725991836577,14.88411169,136.53,136.48,16.91]
[1725991836778,11.28,136.53,136.48,16.91]
[1725991837880,14.9421,136.53,136.48,16.91]
[1725991838282,11.28,136.5,136.48,16.91]
[1725991839479,7.333,136.61,136.48,16.91]
[1725991839672,1.09498543,136.6,136.49,11.28]
[1725991839870,11.28,136.55,136.5,1.3361]
[1725991840271,14.9415,136.55,136.5,1.3361]
[1725991840467,11.28,136.55,136.5,1.3361]
[1725991840682,3.60981344,136.56,136.5,1.3361]
[1725991840880,11.28,136.55,136.5,1.3361]
[1725991841280,3.64756073,136.54,136.5,1.3361]
[1725991841474,3.6619,136.54,136.5,1.3361]
[1725991841669,11.28,136.53,136.5,1.3361]
[1725991842683,14.9422,136.53,136.5,2.1661]
[1725991844079,14.9422,136.53,136.5,8.0261]
[1725991844480,3.6622,136.52,136.5,9.1161]
[1725991844783,11.28,136.52,136.5,7.78]
[1725991844979,14.9424,136.52,136.5,7.78]
[1725991845175,11.28,136.52,136.5,7.78]
[1725991845681,3.6625,136.51,136.5,9.98]
[1725991849887,11.28,136.53,136.5,9.98]
[1725991850079,14.88458049,136.53,136.5,9.98]
[1725991851182,11.28,136.53,136.5,9.98]
[1725991851779,14.95861458,136.54,136.5,9.98]
[1725991851977,11.28,136.54,136.5,15.84]
[1725991852484,15.0120366,136.54,136.5,15.84]
[1725991852784,11.28,136.53,136.5,15.84]
[1725991852979,3.6624,136.52,136.5,15.84]
[1725991853485,11.28,136.53,136.5,15.84]
[1725991854885,18.60285019,136.54,136.5,15.84]
[1725991855086,14.9419,136.54,136.5,15.84]
[1725991855681,14.9416,136.55,136.5,15.84]
[1725991856894,11.28,136.55,136.5,15.84]
[1725991857377,11.28,136.54,136.5,15.84]
[1725991859089,14.9419,136.54,136.5,15.84]
[1725991859987,3.6615,136.55,136.5,15.84]
[1725991860188,14.9415,136.55,136.5,15.84]
[1725991860789,3.6615,136.55,136.5,15.84]
[1725991860993,3.6615,136.55,136.51,3.9839]
[1725991861784,1.2953,136.61,136.51,3.9839]
[1725991861985,11.28,136.57,136.51,3.9839]
[1725991862488,11.28,136.57,136.52,11.28]
[1725991862887,11.28,136.57,136.53,1.09]
[1725991863987,11.28,136.55,136.53,1.09]
[1725991864184,1.2953,136.61,136.53,1.09]
[1725991864185,11.28,136.54,136.53,1.09]
[1725991864794,11.28,136.54,136.53,6.94]
[1725991865202,14.9417,136.54,136.53,6.94]
[1725991866291,14.9417,136.54,136.53,9.15]
[1725991868394,14.9417,136.54,136.53,9.98]
[1725991871190,3.65418437,136.55,136.53,9.98]
[1725991871395,8.6283,136.61,136.53,9.98]
[1725991871396,11.28,136.54,136.53,9.98]
[1725991871791,14.9417,136.54,136.53,15.83]
[1725991872688,8.6283,136.61,136.53,15.83]
[1725991872901,11.28,136.56,136.53,15.83]
[1725991877806,14.90461002,136.56,136.53,15.83]
[1725991878209,11.28,136.56,136.53,15.83]
[1725991879408,11.28,136.55,136.53,15.83]
[1725991879910,15.00682007,136.54,136.53,15.83]
[1725991880303,18.66852007,136.54,136.53,15.83]
[1725991880499,15.00682007,136.54,136.24,3.37259867]
[1725991880699,11.28,136.47,136.4,19.78138376]
[1725991880899,11.28,136.49,136.43,11.28]
[1725991881614,14.9431,136.49,136.43,11.28]
[1725991882311,14.9431,136.49,136.44,2.82]
[1725991883419,14.9431,136.49,136.45,1.2888]
[1725991883910,3.72682007,136.54,136.47,11.28]
[1725991884103,11.28,136.53,136.47,11.28]
[1725991884304,14.9424,136.52,136.46,13.9648]
[1725991884510,11.28,136.52,136.46,13.9648]
[1725991884912,14.9423,136.52,136.46,13.9648]
[1725991885115,7.333,136.58,136.46,13.9648]
[1725991885116,3.63886242,136.53,136.46,13.9648]
[1725991885414,11.28,136.52,136.46,13.9648]
[1725991886206,14.9423,136.52,136.46,13.9648]
[1725991886409,14.9423,136.52,136.47,11.28]
[1725991887715,1.6256,136.62,136.49,11.28]
[1725991887922,11.28,136.55,136.5,11.28]
[1725991888108,11.28,136.56,136.5,11.28]
[1725991888309,11.28,136.56,136.51,12.6464]
[1725991888512,11.28,136.56,136.51,14.0128]
[1725991889425,11.28,136.57,136.51,14.0128]
[1725991890318,14.91776295,136.56,136.51,2.7328]
[1725991890519,11.28,136.56,136.51,2.7328]
[1725991890915,14.9414,136.56,136.51,2.7328]
[1725991891115,18.54476205,136.56,136.51,2.7328]
[1725991891818,14.941,136.57,136.51,14.0128]
[1725991892213,14.941,136.57,136.52,1.3966]
[1725991893614,14.941,136.57,136.52,12.6766]
[1725991895217,3.6606,136.58,136.52,12.6766]
[1725991895525,11.28,136.58,136.52,12.6766]
[1725991895725,14.9408,136.58,136.52,12.6766]
[1725991896523,3.6611,136.57,136.52,12.6766]
[1725991899624,11.28,136.6,136.54,11.28]
[1725991899819,11.28,136.6,136.53,11.28]
[1725991900020,11.28,136.6,136.55,3.6613]
[1725991900323,11.28,136.58,136.55,3.6613]
[1725991900522,11.28,136.57,136.52,1.3966]
[1725991901012,11.28,136.57,136.52,12.6766]
[1725991901218,11.28,136.57,136.54,3.6615]
[1725991902123,11.28,136.57,136.55,3.6614]
[1725991902928,11.28,136.6,136.57,3.6608]
[1725991903625,11.28,136.59,136.57,3.6608]
[1725991904214,11.28,136.59,136.53,11.28]
[1725991905828,11.28,136.57,136.52,1.3966]
[1725991906030,11.28,136.57,136.52,12.6766]
[1725991907023,11.28,136.59,136.53,11.28]
[1725991908424,11.28,136.59,136.52,1.3966]
[1725991908623,11.28,136.59,136.52,12.6766]
[1725991909035,11.28,136.59,136.53,2.29]
[1725991911924,11.28,136.59,136.53,13.57]
[1725991913041,11.28,136.59,136.53,14.09]
[1725991915625,11.28,136.6,136.53,14.09]
[1725991916225,11.28,136.6,136.55,11.28]
[1725991918429,11.28,136.6,136.53,14.09]
[1725991919035,11.28,136.6,136.55,11.28]
[1725991920229,3.6606,136.59,136.54,11.28]
[1725991920831,3.6606,136.58,136.54,11.28]
[1725991921033,11.28,136.6,136.54,11.28]
[1725991921231,11.28,136.6,136.55,11.28]
[1725991921631,11.28,136.6,136.53,2.81]
[1725991921837,11.28,136.59,136.53,14.09]
[1725991922033,11.05578241,136.63,136.53,14.09]
[1725991922234,11.28,136.58,136.53,14.09]
[1725991922731,14.9408,136.58,136.53,14.09]
[1725991922938,3.6608,136.58,136.55,11.28]
[1725991923237,15.00278241,136.63,136.56,11.28]
[1725991923437,11.28,136.63,136.56,12.548]
[1725991923845,3.63416599,136.62,136.58,3.6605]
[1725991924041,1.6683,136.65,136.58,3.6605]
[1725991924240,1.375,136.65,136.59,11.28]
[1725991924443,3.6880082,136.64,136.59,14.9402]
[1725991924635,3.6880082,136.64,136.59,11.28]
[1725991925143,3.6880082,136.64,136.6,3.6601]
[1725991925538,3.6880082,136.64,136.56,2.6417]
[1725991925539,11.28,136.63,136.56,2.6417]
[1725991925856,14.97313603,136.63,136.57,11.28]
[1725991927542,3.6598,136.61,136.57,11.28]
[1725991927746,14.97313603,136.63,136.57,11.28]
[1725991928144,3.6597,136.62,136.57,11.28]
[1725991929053,14.9394,136.63,136.58,11.28]
[1725991929244,18.60306366,136.63,136.58,11.28]
[1725991929444,14.94366366,136.63,136.58,11.28]
[1725991929753,3.6597,136.62,136.58,11.28]
[1725991930149,12.655,136.65,136.58,11.28]
[1725991930343,4.78445095,136.64,136.58,11.28]
[1725991930544,3.69012743,136.64,136.58,11.28]
[1725991930951,3.69012743,136.64,136.59,11.28]
[1725991931149,11.28,136.66,136.59,11.28]
[1725991931350,4.75177936,136.65,136.59,11.28]
[1725991931658,3.65753625,136.65,136.6,2.29]
[1725991931845,11.28,136.66,136.6,2.29]
[1725991932041,3.60810019,136.65,136.6,2.29]
[1725991932252,7.26710019,136.65,136.6,2.29]
[1725991932652,7.26710019,136.65,136.6,2.81]
[1725991933254,122.19691569,136.72,136.61,11.28]
[1725991933450,11.28,136.67,136.61,12.5818]
[1725991933755,11.28,136.7,136.65,11.28]
[1725991933949,14.88710904,136.7,136.65,11.28]
[1725991934150,3.60710904,136.7,136.62,1.2817]
[1725991934352,12.37379557,136.69,136.63,11.28]
[1725991934556,14.88491226,136.69,136.63,11.28]
[1725991935552,14.88491226,136.69,136.62,1.2817]
[1725991935848,11.28,136.64,136.6,2.81]
[1725991936053,3.6594,136.63,136.6,2.81]
[1725991936455,11.28,136.65,136.6,2.81]
[1725991936653,3.6591,136.64,136.6,2.81]
[1725991936858,11.28,136.63,136.6,2.81]
[1725991937659,14.9394,136.63,136.6,2.81]
[1725991938151,3.6594,136.63,136.6,2.81]
[1725991938460,3.6597,136.62,136.6,2.81]
[1725991938763,15.00967628,136.65,136.6,2.81]
[1725991939354,3.6596,136.62,136.6,2.81]
[1725991940354,3.6598,136.61,136.6,2.81]
[1725991947371,14.9398,136.61,136.6,2.81]
[1725991948370,3.72967628,136.65,136.6,2.81]
[1725991948574,11.28,136.63,136.6,2.81]
[1725991949175,3.71960152,136.62,136.6,2.81]
[1725991949376,14.9395,136.63,136.6,2.81]
[1725991949579,5.38615921,136.68,136.6,2.81]
[1725991949876,3.6589,136.65,136.6,14.09]
[1725991950471,14.9021799,136.66,136.6,14.09]
[1725991950675,3.659,136.64,136.6,14.09]
[1725991950879,11.28,136.65,136.6,14.09]
[1725991951077,3.6592,136.64,136.6,14.09]
[1725991951280,11.28,136.65,136.6,2.81]
[1725991951581,11.28,136.63,136.6,2.81]
[1725991951780,11.28,136.62,136.6,2.81]
[1725991952079,11.28,136.61,136.6,2.81]
[1725991952274,11.28,136.61,136.6,2.29]
[1725991952577,11.28,136.61,136.56,1.3539]
[1725991953380,3.72728618,136.6,136.56,1.3539]
[1725991953583,3.6606,136.59,136.56,1.3539]
[1725991953778,3.6606,136.59,136.56,1.8739]
[1725991954283,3.6602,136.6,136.56,4.1639]
[1725991955377,7.25701539,136.61,136.56,4.1639]
[1725991955575,3.59691539,136.61,136.56,4.1639]
[1725991955776,17.59,136.63,136.56,4.1639]
[1725991955978,3.6603,136.6,136.56,4.1639]
[1725991956282,21.24567835,136.63,136.56,4.1639]
[1725991957775,3.65567835,136.63,136.56,4.1639]
[1725991957986,17.59,136.65,136.56,4.1639]
[1725991958281,21.24860846,136.65,136.56,4.1639]
[1725991958472,3.6597,136.62,136.56,4.1639]
[1725991961184,3.6601,136.61,136.56,4.1639]
[1725991961384,21.24860846,136.65,136.56,4.1639]
[1725991961587,17.59,136.63,136.56,4.1639]
[1725991962981,3.6605,136.59,136.56,4.1639]
[1725991963987,17.59,136.63,136.56,4.1639]
[1725991964186,17.59,136.6,136.56,2.81]
[1725991964987,3.6609,136.57,136.56,2.81]
[1725991965184,7.37783412,136.57,136.56,2.81]
[1725991967491,3.6609,136.57,136.56,2.81]
[1725991967985,1.627,136.62,136.56,2.81]
[1725991968200,17.59,136.61,136.56,2.81]
[1725991968378,17.59,136.59,136.56,2.81]
[1725991969188,3.6609,136.57,136.56,2.81]
[1725991969388,7.36354134,136.57,136.56,2.81]
[1725991973890,3.6617,136.54,136.49,21.503]
[1725991974187,11.26,136.56,136.5,11.26]
[1725991974589,3.6619,136.54,136.5,11.26]
[1725991975184,11.26,136.54,136.49,3.913]
[1725991975589,11.26,136.54,136.5,2.81]
[1725991975998,3.6624,136.52,136.5,2.81]
[1725991976297,11.26,136.54,136.5,2.81]
[1725991976593,3.6625,136.51,136.5,2.81]
[1725991977189,11.26,136.53,136.5,2.81]
[1725991977389,3.69467738,136.53,136.5,2.81]
[1725991977590,11.26,136.54,136.5,2.81]
[1725991977997,14.95429785,136.54,136.5,2.81]
[1725991978497,3.6625,136.52,136.5,2.81]
[1725991978693,11.26,136.53,136.5,2.81]
[1725991978902,11.26,136.51,136.5,2.81]
[1725991979403,14.9225,136.51,136.5,2.81]
[1725991980794,3.6625,136.51,136.5,2.81]
[1725991980994,14.9225,136.51,136.5,2.81]
[1725991981501,11.26,136.51,136.48,3.6632]
[1725991981706,3.71848431,136.52,136.46,11.26]
[1725991982002,11.26,136.53,136.48,3.6632]
[1725991982199,11.26,136.51,136.48,3.6632]
[1725991982607,11.26,136.51,136.45,15.1381]
[1725991982996,11.26,136.51,136.45,17.4381]
[1725991983192,11.26,136.51,136.45,17.9581]
[1725991984508,11.26,136.51,136.48,3.6631]
[1725991985714,11.26,136.51,136.47,3.6635]
[1725991986199,11.26,136.51,136.48,3.6633]
[1725991986605,11.26,136.51,136.45,17.9581]
[1725991986909,14.8841061,136.5,136.45,6.6981]
[1725991987208,11.26,136.51,136.45,17.9581]
[1725991987412,3.72708657,136.5,136.48,3.6632]
[1725991989105,3.72708657,136.5,136.49,3.663]
[1725991990713,3.72708657,136.5,136.48,3.6632]
[1725991990918,3.72708657,136.5,136.45,17.9581]
[1725991991512,3.72708657,136.5,136.49,3.663]
[1725991992712,3.72708657,136.5,136.48,3.6632]
[1725991993922,11.26,136.51,136.48,3.6632]
[1725991994114,3.60211112,136.5,136.48,3.6632]
[1725991994513,3.60211112,136.5,136.49,3.663]
[1725991996107,3.60211112,136.5,136.48,3.6632]
[1725991997813,3.60211112,136.5,136.49,3.663]
[1725991998119,11.26,136.52,136.47,11.26]
[1725991998621,11.26,136.52,136.46,11.26]
[1725991999924,11.26,136.52,136.5,3.6628]
[1725992000419,11.26,136.51,136.45,15.6581]
[1725992000921,11.26,136.5,136.48,3.6632]
[1725992001108,11.26,136.5,136.45,17.4381]
[1725992001314,3.59991852,136.51,136.45,17.4381]
[1725992001315,11.26,136.49,136.45,3.5895]
[1725992001509,11.26,136.46,136.45,2.3]
[1725992002317,11.26,136.46,136.39,12.655]
[1725992002318,14.89400102,136.46,136.39,1.395]
[1725992002520,11.26,136.43,136.39,1.395]
[1725992002823,11.26,136.43,136.39,1.915]
[1725992003319,7.333,136.54,136.39,0.52]
[1725992003320,11.26,136.41,136.39,0.52]
[1725992003511,18.59874154,136.41,136.39,0.52]
[1725992004122,3.67334154,136.41,136.39,0.52]
[1725992004416,17.61,136.47,136.39,0.52]
[1725992004417,17.61,136.42,136.39,0.52]
[1725992004826,3.6655,136.4,136.39,0.52]
[1725992005025,21.2755,136.4,136.39,0.52]
[1725992005225,17.61,136.4,136.35,1.2873]
[1725992005428,3.63189909,136.39,136.35,1.2873]
[1725992005725,17.61,136.4,136.35,1.2873]
[1725992006122,3.6664,136.37,136.31,2.6841]
[1725992006321,3.6664,136.37,136.31,3.9921]
[1725992006825,21.25730248,136.4,136.31,4.5121]
[1725992006826,3.64730248,136.4,136.31,4.5121]
[1725992007038,10.93445906,136.47,136.31,22.1221]
[1725992007039,17.61,136.42,136.31,22.1221]
[1725992007728,17.61,136.42,136.33,17.61]
[1725992008123,17.61,136.44,136.33,17.61]
[1725992008318,17.61,136.46,136.35,17.61]
[1725992008520,17.61,136.46,136.36,1.3826]
[1725992009032,17.61,136.46,136.37,2.7322]
[1725992009822,17.61,136.46,136.42,3.6648]
[1725992010526,17.61,136.46,136.43,3.6646]
[1725992010725,17.61,136.44,136.37,2.7322]
[1725992011125,17.61,136.44,136.42,3.6647]
[1725992011321,17.61,136.46,136.37,2.7322]
[1725992012832,17.61,136.46,136.43,3.6646]
[1725992013724,17.61,136.46,136.42,3.6649]
[1725992014133,17.61,136.46,136.37,2.7322]
[1725992014626,17.61,136.46,136.42,3.6647]
[1725992016635,17.61,136.46,136.43,3.6646]
[1725992017026,17.61,136.46,136.45,3.6641]
[1725992017228,3.60145906,136.47,136.45,3.6641]
[1725992017528,17.61,136.48,136.45,3.6641]
[1725992018035,21.34587399,136.48,136.45,3.6641]
[1725992018232,21.34587399,136.48,136.38,17.61]
[1725992018427,21.34587399,136.48,136.38,24.942]
[1725992019229,3.73587399,136.48,136.4,17.61]
[1725992019429,17.61,136.5,136.41,1.3612]
[1725992019634,17.61,136.52,136.42,17.61]
[1725992019929,17.61,136.52,136.43,2.618]
[1725992020242,17.61,136.52,136.49,3.6629]
[1725992020429,21.35202771,136.52,136.49,3.6629]
[1725992021232,21.35202771,136.52,136.5,3.6626]
[1725992023838,21.35202771,136.52,136.51,3.6625]
[1725992024037,21.35202771,136.52,136.43,2.618]
[1725992024445,21.35202771,136.52,136.51,3.6625]
[1725992025238,3.74202771,136.52,136.51,3.6625]
[1725992025431,17.61,136.54,136.44,21.24829898]
[1725992025637,17.61,136.54,136.46,17.61]
[1725992025834,17.61,136.54,136.47,1.3965]
[1725992026033,3.65809027,136.54,136.53,3.662]
[1725992026233,17.61,136.58,136.47,19.0065]
[1725992026438,17.61,136.58,136.47,1.3965]
[1725992026439,21.30805448,136.58,136.47,1.3965]
[1725992027643,21.30805448,136.58,136.54,3.6615]
[1725992028146,21.30805448,136.58,136.53,3.6618]
[1725992030340,21.30805448,136.58,136.54,3.6617]
[1725992031448,21.30805448,136.58,136.47,1.3965]
[1725992031449,17.61,136.63,136.52,17.61]
[1725992031649,17.61,136.63,136.53,3.9903]
[1725992031650,21.19336386,136.63,136.53,3.9903]
[1725992031850,21.19336386,136.63,136.59,3.6602]
[1725992038560,21.19336386,136.63,136.59,4.1802]
[1725992038764,17.61,136.6,136.53,3.9903]
[1725992038958,17.61,136.6,136.53,2.6278]
[1725992039163,17.61,136.58,136.53,1.2935]
[1725992039465,17.61,136.58,136.54,3.6616]
[1725992040967,17.61,136.58,136.49,1.3824]
[1725992041167,17.61,136.58,136.49,2.7189]
[1725992041368,17.61,136.58,136.55,3.6614]
[1725992041962,17.61,136.58,136.56,3.6611]
[1725992042159,17.61,136.58,136.5,1.3987]
[1725992043167,17.61,136.58,136.55,3.6613]
[1725992043876,17.61,136.58,136.5,1.3987]
[1725992045261,17.61,136.58,136.52,3.6621]
[1725992045567,17.61,136.58,136.5,1.3987]
[1725992045777,17.61,136.58,136.52,3.6621]
[1725992046373,17.61,136.58,136.53,3.6619]
[1725992047670,17.61,136.56,136.5,1.3987]
[1725992047871,21.26565081,136.56,136.49,1.3824]
[1725992048069,17.61,136.54,136.49,1.3824]
[1725992048270,17.61,136.54,136.5,3.6626]
[1725992050075,17.61,136.54,136.51,3.6624]
[1725992050265,17.61,136.54,136.49,1.3824]
[1725992050775,17.61,136.54,136.51,3.6624]
[1725992050965,21.26565081,136.56,136.49,1.3824]
[1725992051168,17.61,136.56,136.49,1.3824]
[1725992051772,21.34268342,136.56,136.49,1.3824]
[1725992055173,21.34268342,136.56,136.51,3.6623]
[1725992055677,21.34268342,136.56,136.49,1.3824]
[1725992056275,17.61,136.54,136.49,1.3824]
[1725992056475,17.61,136.54,136.49,3.6629]
[1725992059285,17.61,136.54,136.48,5.0413]
[1725992059584,17.61,136.54,136.48,1.3782]
[1725992059784,17.61,136.52,136.45,2.7367]
[1725992060282,17.61,136.5,136.44,3.6643]
[1725992062977,3.59483833,136.49,136.43,1.3877]
[1725992063181,17.61,136.52,136.43,2.7419]
[1725992063482,17.61,136.53,136.48,3.6631]
[1725992063686,17.61,136.53,136.43,20.3519]
[1725992064476,17.61,136.53,136.49,3.663]
[1725992065478,11.06568342,136.56,136.49,3.663]
[1725992065679,11.06568342,136.56,136.43,20.3519]
[1725992065680,17.61,136.53,136.48,3.6632]
[1725992065879,17.61,136.52,136.43,20.3519]
[1725992066080,17.61,136.52,136.47,3.6634]
[1725992066583,17.61,136.52,136.48,3.6633]
[1725992067183,17.61,136.52,136.47,3.6635]
[1725992067375,17.61,136.52,136.43,20.3519]
[1725992067878,17.61,136.52,136.46,3.6637]
[1725992068673,17.61,136.52,136.47,3.6636]
[1725992069076,11.06568342,136.56,136.47,3.6636]
[1725992069278,17.61,136.54,136.43,20.3519]
[1725992069484,3.65369221,136.53,136.43,24.01035678]
[1725992069783,3.65369221,136.53,136.51,3.6624]
[1725992070481,3.65369221,136.53,136.52,3.6622]
[1725992071377,17.61,136.54,136.53,3.662]
[1725992071573,17.61,136.56,136.46,17.61]
[1725992071778,21.25379656,136.56,136.47,1.3893]
[1725992071977,21.25379656,136.56,136.53,3.6618]
[1725992072485,21.25379656,136.56,136.48,1.309]
[1725992072784,21.25379656,136.56,136.52,3.662]
[1725992073788,21.25379656,136.56,136.53,3.6619]
[1725992074682,3.64379656,136.56,136.55,3.6614]
[1725992074989,17.61,136.58,136.55,3.6614]
[1725992075376,17.61,136.58,136.49,1.3053]
[1725992075377,17.61,136.57,136.49,1.3053]
[1725992076187,21.24586677,136.57,136.49,1.3053]
[1725992076488,21.24586677,136.57,136.54,3.6617]
[1725992077182,21.24586677,136.57,136.49,1.3053]
[1725992077784,21.24586677,136.57,136.53,3.6619]
[1725992078488,21.24586677,136.57,136.54,3.6617]
[1725992079482,3.63586677,136.57,136.55,3.6614]
[1725992079681,17.61,136.58,136.55,3.6614]
[1725992079988,21.33096431,136.58,136.55,3.6614]
[1725992082387,21.33096431,136.58,136.54,3.6616]
[1725992082578,21.33096431,136.58,136.49,18.9153]
[1725992082977,21.33096431,136.58,136.55,3.6612]
[1725992083491,21.33096431,136.58,136.56,3.6612]
[1725992084482,21.33096431,136.58,136.57,3.6609]
[1725992084680,3.72096431,136.58,136.57,3.6609]
[1725992084884,17.61,136.6,136.57,3.6609]
[1725992085085,17.61,136.6,136.59,3.6604]
[1725992085592,21.32052348,136.6,136.53,1.3247]
[1725992087086,17.61,136.6,136.53,1.3247]
[1725992087488,21.29488314,136.6,136.58,3.6606]
[1725992087779,21.29488314,136.6,136.54,1.3801]
[1725992088187,21.29488314,136.6,136.59,3.6604]
[1725992088786,3.68488314,136.6,136.59,3.6604]
[1725992088987,17.61,136.62,136.59,3.6604]
[1725992089388,21.30670329,136.62,136.54,1.3801]
[1725992089996,21.30670329,136.62,136.59,3.6602]
[1725992091186,21.30670329,136.62,136.6,3.6599]
[1725992091393,3.69670329,136.62,136.54,1.3801]
[1725992091697,17.61,136.64,136.54,1.3801]
[1725992091893,17.61,136.64,136.61,3.6597]
[1725992092097,21.22428571,136.64,136.61,3.6597]
[1725992093990,21.22428571,136.64,136.62,3.6595]
[1725992094197,11.25,136.63,136.62,3.6595]
[1725992094788,14.95211675,136.63,136.62,3.6595]
[1725992098195,3.70211675,136.63,136.62,3.6595]
[1725992098385,11.25,136.65,136.63,3.6591]
[1725992098696,3.7337044,136.64,136.63,3.6591]
[1725992098884,11.25,136.65,136.59,11.25]
[1725992098885,11.25,136.65,136.64,3.659]
[1725992099289,3.59528343,136.66,136.6,13.9933]
[1725992099492,11.25,136.67,136.6,13.9933]
[1725992099697,11.25,136.66,136.6,2.7433]
[1725992100093,21.23083199,136.67,136.63,3.6591]
[1725992100498,21.23083199,136.67,136.65,3.6586]
[1725992100699,3.66083199,136.67,136.62,17.57]
[1725992100905,22.0,136.87,136.63,1.3732]
[1725992101104,17.57,136.72,136.63,1.3732]
[1725992101496,3.57707509,136.71,136.63,1.3732]
[1725992101801,3.57707509,136.71,136.7,3.6574]
[1725992104399,3.57707509,136.71,136.69,3.6576]
[1725992105003,3.57707509,136.71,136.7,3.6574]
[1725992105305,17.57,136.74,136.63,18.9432]
[1725992105602,1.09350586,136.78,136.65,17.57]
[1725992105807,17.57,136.76,136.66,2.6049]
[1725992106000,17.56,136.74,136.66,2.6049]
[1725992106501,21.16332896,136.76,136.66,20.1649]
[1725992106696,17.56,136.76,136.66,20.1649]
[1725992107100,17.56,136.76,136.72,3.6566]
[1725992107101,3.58393261,136.75,136.72,3.6566]
[1725992107297,17.56,136.76,136.66,20.1649]
[1725992107904,21.14653494,136.76,136.66,20.1649]
[1725992108404,21.14653494,136.76,136.72,3.6567]